[Event "Titled Tuesday Blitz June 28 Early 2022"]
[White "Bettalli, Francesco"]
[Black "Blokhin, Sofia"]
[WhiteFideId "2816453"]
[BlackFideId "4508190"]
[WhiteElo "2216"]
[BlackElo "1760"]
[Result "1-0"]
[Round "01"]
[TimeControl "180+1"]
[Date "2022.06.28"]
[WhiteClock "0:00:33"]
[BlackClock "0:00:02"]

1. d4 {[%clk 0:02:58]}  f5 {[%clk 0:02:58]} 2. g4 {[%clk 0:02:58]}  fxg4 {[%clk 0:02:57]} 3. h3 {[%clk 0:02:58]}  d5 {[%clk 0:02:56]} 4. hxg4 {[%clk 0:02:57]}  Bxg4 {[%clk 0:02:54]} 5. Bh3 {[%clk 0:02:56]}  Bxh3 {[%clk 0:02:52]} 6. Nxh3 {[%clk 0:02:57]}  Nf6 {[%clk 0:02:48]} 7. Nc3 {[%clk 0:02:55]}  e6 {[%clk 0:02:42]} 8. Qd3 {[%clk 0:02:52]}  Nc6 {[%clk 0:02:24]} 9. Ng5 {[%clk 0:02:49]}  Qd7 {[%clk 0:02:16]} 10. Bf4 {[%clk 0:02:45]}  a6 {[%clk 0:02:10]} 11. O-O-O {[%clk 0:02:42]}  O-O-O {[%clk 0:02:04]} 12. Nxh7 {[%clk 0:02:41]}  Nb4 {[%clk 0:01:36]} 13. Nxf6 {[%clk 0:01:35]}  Nxd3+ {[%clk 0:01:34]} 14. cxd3 {[%clk 0:01:36]}  gxf6 {[%clk 0:01:08]} 15. Rxh8 {[%clk 0:01:35]}  Bg7 {[%clk 0:00:53]} 16. Rxd8+ {[%clk 0:01:32]}  Qxd8 {[%clk 0:00:51]} 17. Rg1 {[%clk 0:01:32]}  Qd7 {[%clk 0:00:46]} 18. Kd2 {[%clk 0:01:26]}  b5 {[%clk 0:00:41]} 19. b3 {[%clk 0:01:19]}  Kb7 {[%clk 0:00:34]} 20. Bg3 {[%clk 0:01:06]}  Bf8 {[%clk 0:00:33]} 21. Kc2 {[%clk 0:01:05]}  Qc6 {[%clk 0:00:32]} 22. Kb2 {[%clk 0:01:03]}  Ba3+ {[%clk 0:00:29]} 23. Kxa3 {[%clk 0:01:03]}  Qxc3 {[%clk 0:00:29]} 24. Bf4 {[%clk 0:00:58]}  b4+ {[%clk 0:00:18]} 25. Ka4 {[%clk 0:00:58]}  a5 {[%clk 0:00:12]} 26. Rc1 {[%clk 0:00:54]}  Qb2 {[%clk 0:00:10]} 27. Kxa5 {[%clk 0:00:47]}  Qa3+ {[%clk 0:00:06]} 28. Kb5 {[%clk 0:00:46]}  c6+ {[%clk 0:00:05]} 29. Rxc6 {[%clk 0:00:45]}  Qxa2 {[%clk 0:00:05]} 30. Rb6+ {[%clk 0:00:43]}  Kc8 {[%clk 0:00:03]} 31. Kc6 {[%clk 0:00:42]}  Qc2+ {[%clk 0:00:03]} 32. Kb5 {[%clk 0:00:40]}  Qxb3 {[%clk 0:00:03]} 33. Bd6 {[%clk 0:00:35]}  Qa3 {[%clk 0:00:03]} 34. Bxb4 {[%clk 0:00:34]}  Qa2 {[%clk 0:00:03]} 35. Kc6 {[%clk 0:00:32]}  Qc2+ {[%clk 0:00:03]} 36. Bc5 {[%clk 0:00:33]}  Qxe2 {[%clk 0:00:03]} 37. Ra6 {[%clk 0:00:32]}  Kb8 {[%clk 0:00:02]} 38. Bd6+ {[%clk 0:00:32]}  Kc8 {[%clk 0:00:02]} 39. Ra8# {[%clk 0:00:33]} 1-0


[Site "https://www.chess.com"]

[Event "Titled Tuesday Blitz June 28 Early 2022"]
[White "Bolanos, Fernando"]
[Black "Pulpan, Jakub"]
[WhiteFideId "3304094"]
[BlackFideId "302759"]
[WhiteElo "2048"]
[BlackElo "2495"]
[Result "0-1"]
[Round "01"]
[TimeControl "180+1"]
[Date "2022.06.28"]
[WhiteClock "0:00:02"]
[BlackClock "0:00:31"]

1. e4 {[%clk 0:02:34]}  e5 {[%clk 0:02:55]} 2. Nf3 {[%clk 0:02:33]}  Nc6 {[%clk 0:02:51]} 3. Bc4 {[%clk 0:02:32]}  Nf6 {[%clk 0:02:47]} 4. d3 {[%clk 0:02:31]}  Bc5 {[%clk 0:02:47]} 5. O-O {[%clk 0:02:30]}  d6 {[%clk 0:02:43]} 6. c3 {[%clk 0:02:30]}  a5 {[%clk 0:02:43]} 7. Nbd2 {[%clk 0:02:29]}  O-O {[%clk 0:02:40]} 8. h3 {[%clk 0:02:29]}  h6 {[%clk 0:02:34]} 9. Re1 {[%clk 0:02:29]}  Be6 {[%clk 0:02:34]} 10. Bb3 {[%clk 0:02:25]}  a4 {[%clk 0:02:32]} 11. Bc2 {[%clk 0:02:24]}  b5 {[%clk 0:02:22]} 12. Nf1 {[%clk 0:02:23]}  Bb6 {[%clk 0:02:21]} 13. Be3 {[%clk 0:02:10]}  Bxe3 {[%clk 0:02:08]} 14. Nxe3 {[%clk 0:02:06]}  Ne7 {[%clk 0:02:02]} 15. d4 {[%clk 0:02:06]}  Ng6 {[%clk 0:02:01]} 16. Nf5 {[%clk 0:02:03]}  Re8 {[%clk 0:01:56]} 17. g3 {[%clk 0:01:52]}  c6 {[%clk 0:01:50]} 18. Kg2 {[%clk 0:01:52]}  Qc7 {[%clk 0:01:49]} 19. h4 {[%clk 0:01:49]}  Rad8 {[%clk 0:01:47]} 20. h5 {[%clk 0:01:49]}  Ne7 {[%clk 0:01:45]} 21. N3h4 {[%clk 0:01:44]}  Nxf5 {[%clk 0:01:42]} 22. Nxf5 {[%clk 0:01:43]}  Bxf5 {[%clk 0:01:42]} 23. exf5 {[%clk 0:01:44]}  c5 {[%clk 0:01:42]} 24. d5 {[%clk 0:01:32]}  Qb7 {[%clk 0:01:36]} 25. Be4 {[%clk 0:01:32]}  c4 {[%clk 0:01:34]} 26. f3 {[%clk 0:01:30]}  b4 {[%clk 0:01:31]} 27. g4 {[%clk 0:01:30]}  bxc3 {[%clk 0:01:32]} 28. bxc3 {[%clk 0:01:22]}  Nxe4 {[%clk 0:01:32]} 29. Rxe4 {[%clk 0:01:19]}  Qb2+ {[%clk 0:01:32]} 30. Kg3 {[%clk 0:01:18]}  Qxc3 {[%clk 0:01:31]} 31. Rc1 {[%clk 0:01:19]}  Qa3 {[%clk 0:01:29]} 32. Rexc4 {[%clk 0:01:17]}  e4 {[%clk 0:01:18]} 33. Rxa4 {[%clk 0:01:13]}  Qe3 {[%clk 0:01:18]} 34. Rac4 {[%clk 0:00:52]}  exf3 {[%clk 0:01:11]} 35. Qxf3 {[%clk 0:00:48]}  Qd2 {[%clk 0:01:11]} 36. R4c2 {[%clk 0:00:47]}  Qd4 {[%clk 0:01:09]} 37. Rc4 {[%clk 0:00:46]}  Qa7 {[%clk 0:01:09]} 38. Re4 {[%clk 0:00:26]}  Qxa2 {[%clk 0:01:04]} 39. Rce1 {[%clk 0:00:22]}  Rxe4 {[%clk 0:01:04]} 40. Qxe4 {[%clk 0:00:23]}  Rc8 {[%clk 0:00:58]} 41. f6 {[%clk 0:00:06]}  gxf6 {[%clk 0:00:45]} 42. Re3 {[%clk 0:00:02]}  Kg7 {[%clk 0:00:42]} 43. Qf4 {[%clk 0:00:01]}  Rc2 {[%clk 0:00:35]} 44. Rf3 {[%clk 0:00:01]}  Qb2 {[%clk 0:00:33]} 45. Kh3 {[%clk 0:00:02]}  Rc1 {[%clk 0:00:31]} 0-1


[Site "https://www.chess.com"]

[Event "Titled Tuesday Blitz June 28 Early 2022"]
[White "Bommini, Mounika Akshaya"]
[Black "Papp, Levente"]
[WhiteFideId "25019872"]
[BlackFideId "751243"]
[WhiteElo "1680"]
[BlackElo "2308"]
[Result "0-1"]
[Round "01"]
[TimeControl "180+1"]
[Date "2022.06.28"]
[WhiteClock "0:00:50"]
[BlackClock "0:01:51"]

1. d4 {[%clk 0:02:47]}  e6 {[%clk 0:02:59]} 2. c4 {[%clk 0:02:47]}  b6 {[%clk 0:02:57]} 3. Nc3 {[%clk 0:02:46]}  Bb4 {[%clk 0:02:55]} 4. e4 {[%clk 0:02:44]}  Bb7 {[%clk 0:02:53]} 5. f3 {[%clk 0:02:42]}  Bxc3+ {[%clk 0:02:51]} 6. bxc3 {[%clk 0:02:41]}  Qh4+ {[%clk 0:02:52]} 7. g3 {[%clk 0:02:37]}  Qe7 {[%clk 0:02:53]} 8. Bd3 {[%clk 0:02:33]}  d6 {[%clk 0:02:50]} 9. Ne2 {[%clk 0:02:31]}  Nf6 {[%clk 0:02:44]} 10. O-O {[%clk 0:02:31]}  O-O {[%clk 0:02:44]} 11. a4 {[%clk 0:02:13]}  a5 {[%clk 0:02:43]} 12. e5 {[%clk 0:02:04]}  dxe5 {[%clk 0:02:40]} 13. Ba3 {[%clk 0:02:02]}  c5 {[%clk 0:02:37]} 14. dxe5 {[%clk 0:01:57]}  Nfd7 {[%clk 0:02:29]} 15. f4 {[%clk 0:01:53]}  f6 {[%clk 0:02:24]} 16. exf6 {[%clk 0:01:36]}  Nxf6 {[%clk 0:02:24]} 17. Nd4 {[%clk 0:01:26]}  Qc7 {[%clk 0:02:08]} 18. Nf3 {[%clk 0:01:02]}  Nbd7 {[%clk 0:02:02]} 19. Qe2 {[%clk 0:01:00]}  Rfe8 {[%clk 0:01:58]} 20. Rfe1 {[%clk 0:00:54]}  Qc6 {[%clk 0:01:57]} 21. Rf1 {[%clk 0:00:50]}  e5 {[%clk 0:01:51]} 0-1


[Site "https://www.chess.com"]

[Event "Titled Tuesday Blitz June 28 Early 2022"]
[White "Bringas Gomez, Artai"]
[Black "Ozturk, Efe Hakan"]
[WhiteFideId "24534064"]
[BlackFideId "34550216"]
[WhiteElo "1988"]
[BlackElo "1924"]
[Result "0-1"]
[Round "01"]
[TimeControl "180+1"]
[Date "2022.06.28"]
[WhiteClock "0:00:03"]
[BlackClock "0:00:14"]

1. e4 {[%clk 0:02:58]}  e5 {[%clk 0:02:42]} 2. Nf3 {[%clk 0:02:58]}  Nc6 {[%clk 0:02:41]} 3. Bb5 {[%clk 0:02:58]}  a6 {[%clk 0:02:41]} 4. Ba4 {[%clk 0:02:58]}  Nf6 {[%clk 0:02:41]} 5. d3 {[%clk 0:02:58]}  b5 {[%clk 0:02:39]} 6. Bb3 {[%clk 0:02:58]}  d6 {[%clk 0:02:38]} 7. a3 {[%clk 0:02:58]}  Be7 {[%clk 0:02:38]} 8. Nc3 {[%clk 0:02:56]}  O-O {[%clk 0:02:38]} 9. Bg5 {[%clk 0:02:56]}  Be6 {[%clk 0:02:35]} 10. Bxf6 {[%clk 0:02:55]}  Bxf6 {[%clk 0:02:33]} 11. Bd5 {[%clk 0:02:54]}  Qd7 {[%clk 0:02:32]} 12. O-O {[%clk 0:02:54]}  Rae8 {[%clk 0:02:29]} 13. b4 {[%clk 0:02:51]}  Nd4 {[%clk 0:02:26]} 14. Ne1 {[%clk 0:02:36]}  c6 {[%clk 0:02:18]} 15. Bxe6 {[%clk 0:02:33]}  fxe6 {[%clk 0:02:15]} 16. a4 {[%clk 0:02:32]}  d5 {[%clk 0:02:11]} 17. axb5 {[%clk 0:02:28]}  axb5 {[%clk 0:02:11]} 18. Ra6 {[%clk 0:02:28]}  Ra8 {[%clk 0:02:10]} 19. Qa1 {[%clk 0:02:25]}  Qb7 {[%clk 0:02:11]} 20. Ra5 {[%clk 0:02:24]}  Rxa5 {[%clk 0:02:05]} 21. bxa5 {[%clk 0:02:22]}  Ra8 {[%clk 0:02:06]} 22. Nf3 {[%clk 0:02:03]}  Nxf3+ {[%clk 0:02:02]} 23. gxf3 {[%clk 0:02:04]}  Bd8 {[%clk 0:02:02]} 24. Ne2 {[%clk 0:01:59]}  d4 {[%clk 0:02:00]} 25. f4 {[%clk 0:01:59]}  Rxa5 {[%clk 0:01:59]} 26. Qc1 {[%clk 0:01:59]}  Qc7 {[%clk 0:01:53]} 27. Kh1 {[%clk 0:01:57]}  exf4 {[%clk 0:01:51]} 28. Rg1 {[%clk 0:01:53]}  e5 {[%clk 0:01:47]} 29. c3 {[%clk 0:01:53]}  c5 {[%clk 0:01:46]} 30. Qb1 {[%clk 0:01:45]}  Qf7 {[%clk 0:01:40]} 31. cxd4 {[%clk 0:01:38]}  cxd4 {[%clk 0:01:41]} 32. Qc1 {[%clk 0:01:38]}  Ra2 {[%clk 0:01:32]} 33. Qc8 {[%clk 0:01:37]}  Qe7 {[%clk 0:01:19]} 34. Re1 {[%clk 0:01:18]}  h6 {[%clk 0:01:00]} 35. Qc6 {[%clk 0:01:11]}  Kh7 {[%clk 0:00:56]} 36. Qc8 {[%clk 0:00:28]}  Ba5 {[%clk 0:00:48]} 37. Qf5+ {[%clk 0:00:08]}  g6 {[%clk 0:00:48]} 38. Qc8 {[%clk 0:00:06]}  Bxe1 {[%clk 0:00:46]} 39. Ng1 {[%clk 0:00:06]}  Rxf2 {[%clk 0:00:38]} 40. Qa8 {[%clk 0:00:02]}  f3 {[%clk 0:00:34]} 41. Qc8 {[%clk 0:00:02]}  Bd2 {[%clk 0:00:27]} 42. Qg4 {[%clk 0:00:02]}  Bf4 {[%clk 0:00:24]} 43. Nxf3 {[%clk 0:00:02]}  h5 {[%clk 0:00:22]} 44. Qh3 {[%clk 0:00:02]}  Qc7 {[%clk 0:00:17]} 45. Kg1 {[%clk 0:00:03]}  Ra2 {[%clk 0:00:15]} 46. Qe6 {[%clk 0:00:02]}  Qc1+ {[%clk 0:00:15]} 47. Ne1 {[%clk 0:00:03]}  Qxe1# {[%clk 0:00:14]} 0-1


[Site "https://www.chess.com"]

[Event "Titled Tuesday Blitz June 28 Early 2022"]
[White "Carrasco Miranda, Andres"]
[Black "Ferreira, Vitor Hugo Vieira"]
[WhiteFideId "3405990"]
[BlackFideId "2119765"]
[WhiteElo "2177"]
[BlackElo "2165"]
[Result "1-0"]
[Round "01"]
[TimeControl "180+1"]
[Date "2022.06.28"]
[WhiteClock "0:00:20"]
[BlackClock "0:00:04"]

1. d4 {[%clk 0:02:56]}  d5 {[%clk 0:02:58]} 2. c4 {[%clk 0:02:53]}  c6 {[%clk 0:02:59]} 3. Nf3 {[%clk 0:02:53]}  Nf6 {[%clk 0:02:59]} 4. e3 {[%clk 0:02:53]}  e6 {[%clk 0:02:59]} 5. b3 {[%clk 0:02:53]}  Nbd7 {[%clk 0:02:59]} 6. Bd3 {[%clk 0:02:53]}  Bd6 {[%clk 0:02:59]} 7. O-O {[%clk 0:02:53]}  O-O {[%clk 0:03:00]} 8. Bb2 {[%clk 0:02:53]}  Qe7 {[%clk 0:03:00]} 9. Ne5 {[%clk 0:02:53]}  c5 {[%clk 0:02:48]} 10. cxd5 {[%clk 0:02:50]}  exd5 {[%clk 0:02:47]} 11. f4 {[%clk 0:02:43]}  Ne4 {[%clk 0:02:47]} 12. Nd2 {[%clk 0:02:39]}  f5 {[%clk 0:02:46]} 13. Ndf3 {[%clk 0:02:36]}  Ndf6 {[%clk 0:02:44]} 14. Rc1 {[%clk 0:02:34]}  Be6 {[%clk 0:02:43]} 15. Qe1 {[%clk 0:02:29]}  Rac8 {[%clk 0:02:39]} 16. Ng5 {[%clk 0:02:22]}  Nxg5 {[%clk 0:02:36]} 17. fxg5 {[%clk 0:02:23]}  Ne4 {[%clk 0:02:36]} 18. g6 {[%clk 0:02:18]}  Qg5 {[%clk 0:02:18]} 19. gxh7+ {[%clk 0:02:16]}  Kh8 {[%clk 0:02:19]} 20. Rf4 {[%clk 0:02:04]}  cxd4 {[%clk 0:02:08]} 21. Rxc8 {[%clk 0:02:02]}  Rxc8 {[%clk 0:02:04]} 22. Bxd4 {[%clk 0:01:54]}  Ba3 {[%clk 0:01:52]} 23. Qh4 {[%clk 0:01:45]}  Rc1+ {[%clk 0:01:46]} 24. Bf1 {[%clk 0:01:45]}  Be7 {[%clk 0:01:06]} 25. Qxg5 {[%clk 0:01:29]}  Bxg5 {[%clk 0:01:01]} 26. Rxe4 {[%clk 0:01:12]}  fxe4 {[%clk 0:00:46]} 27. Ng6+ {[%clk 0:01:11]}  Kxh7 {[%clk 0:00:44]} 28. Nf8+ {[%clk 0:01:12]}  Kg8 {[%clk 0:00:42]} 29. Nxe6 {[%clk 0:01:12]}  Be7 {[%clk 0:00:19]} 30. Bxa7 {[%clk 0:01:02]}  Ra1 {[%clk 0:00:19]} 31. Nf4 {[%clk 0:00:55]}  Rxa2 {[%clk 0:00:16]} 32. Bd4 {[%clk 0:00:51]}  Ra5 {[%clk 0:00:13]} 33. Nxd5 {[%clk 0:00:50]}  Ba3 {[%clk 0:00:10]} 34. Nc3 {[%clk 0:00:39]}  Ra8 {[%clk 0:00:07]} 35. Nxe4 {[%clk 0:00:37]}  Re8 {[%clk 0:00:08]} 36. Ng5 {[%clk 0:00:33]}  Rc8 {[%clk 0:00:05]} 37. Bc4+ {[%clk 0:00:32]}  Kf8 {[%clk 0:00:05]} 38. Kf2 {[%clk 0:00:29]}  Ke7 {[%clk 0:00:04]} 39. h4 {[%clk 0:00:29]}  g6 {[%clk 0:00:05]} 40. g4 {[%clk 0:00:26]}  Bc1 {[%clk 0:00:02]} 41. h5 {[%clk 0:00:26]}  b5 {[%clk 0:00:03]} 42. Bxb5 {[%clk 0:00:22]}  gxh5 {[%clk 0:00:03]} 43. gxh5 {[%clk 0:00:21]}  Rc2+ {[%clk 0:00:03]} 44. Be2 {[%clk 0:00:22]}  Rc6 {[%clk 0:00:02]} 45. Bf3 {[%clk 0:00:19]}  Rh6 {[%clk 0:00:02]} 46. Kg3 {[%clk 0:00:18]}  Ba3 {[%clk 0:00:01]} 47. Kg4 {[%clk 0:00:18]}  Bd6 {[%clk 0:00:02]} 48. Ne4 {[%clk 0:00:18]}  Bc7 {[%clk 0:00:03]} 49. Bg7 {[%clk 0:00:17]}  Rh7 {[%clk 0:00:02]} 50. h6 {[%clk 0:00:18]}  Kf7 {[%clk 0:00:03]} 51. Ng5+ {[%clk 0:00:18]}  Kg8 {[%clk 0:00:03]} 52. Nxh7 {[%clk 0:00:18]}  Kxh7 {[%clk 0:00:04]} 53. Be4+ {[%clk 0:00:19]}  Kg8 {[%clk 0:00:04]} 54. Bd4 {[%clk 0:00:19]}  Bd8 {[%clk 0:00:04]} 55. h7+ {[%clk 0:00:19]}  Kf7 {[%clk 0:00:03]} 56. h8=Q {[%clk 0:00:20]}  Bf6 {[%clk 0:00:04]} 57. Qxf6+ {[%clk 0:00:20]} 1-0


[Site "https://www.chess.com"]

[Event "Titled Tuesday Blitz June 28 Early 2022"]
[White "Coto Mederos, Michel"]
[Black "Hovhannisyan, Robert"]
[WhiteFideId "3508528"]
[BlackFideId "13302507"]
[WhiteElo "2427"]
[BlackElo "2570"]
[Result "0-1"]
[Round "01"]
[TimeControl "180+1"]
[Date "2022.06.28"]
[WhiteClock "0:00:03"]
[BlackClock "0:00:18"]

1. c4 {[%clk 0:02:04]}  e5 {[%clk 0:02:58]} 2. Nc3 {[%clk 0:02:03]}  Bb4 {[%clk 0:02:56]} 3. Nd5 {[%clk 0:02:01]}  Be7 {[%clk 0:02:54]} 4. g3 {[%clk 0:01:53]}  Nf6 {[%clk 0:02:53]} 5. Nxe7 {[%clk 0:01:53]}  Qxe7 {[%clk 0:02:54]} 6. Bg2 {[%clk 0:01:54]}  O-O {[%clk 0:02:51]} 7. e3 {[%clk 0:01:45]}  c6 {[%clk 0:02:42]} 8. Ne2 {[%clk 0:01:35]}  d5 {[%clk 0:02:42]} 9. cxd5 {[%clk 0:01:36]}  cxd5 {[%clk 0:02:43]} 10. O-O {[%clk 0:01:33]}  Nc6 {[%clk 0:02:42]} 11. d3 {[%clk 0:01:23]}  Bf5 {[%clk 0:02:27]} 12. a3 {[%clk 0:01:14]}  a5 {[%clk 0:02:08]} 13. b3 {[%clk 0:01:14]}  Qd7 {[%clk 0:02:06]} 14. Bb2 {[%clk 0:01:13]}  Bh3 {[%clk 0:02:05]} 15. Rc1 {[%clk 0:01:12]}  h5 {[%clk 0:01:52]} 16. Re1 {[%clk 0:00:54]}  Bxg2 {[%clk 0:01:52]} 17. Kxg2 {[%clk 0:00:55]}  h4 {[%clk 0:01:51]} 18. h3 {[%clk 0:00:52]}  hxg3 {[%clk 0:01:47]} 19. fxg3 {[%clk 0:00:53]}  Rfe8 {[%clk 0:01:34]} 20. g4 {[%clk 0:00:51]}  Rad8 {[%clk 0:01:25]} 21. Ng3 {[%clk 0:00:51]}  Qe6 {[%clk 0:01:16]} 22. Rf1 {[%clk 0:00:48]}  Ne7 {[%clk 0:01:07]} 23. g5 {[%clk 0:00:37]}  Nd7 {[%clk 0:01:01]} 24. Qh5 {[%clk 0:00:34]}  Rc8 {[%clk 0:00:49]} 25. h4 {[%clk 0:00:27]}  d4 {[%clk 0:00:46]} 26. e4 {[%clk 0:00:20]}  Ng6 {[%clk 0:00:36]} 27. Nf5 {[%clk 0:00:12]}  Qxb3 {[%clk 0:00:29]} 28. Rxc8 {[%clk 0:00:11]}  Rxc8 {[%clk 0:00:30]} 29. Bc1 {[%clk 0:00:06]}  Rxc1 {[%clk 0:00:20]} 30. Ne7+ {[%clk 0:00:06]}  Nxe7 {[%clk 0:00:18]} 31. Rxc1 {[%clk 0:00:07]}  Qb2+ {[%clk 0:00:18]} 32. Kg3 {[%clk 0:00:03]}  Qxc1 {[%clk 0:00:18]} 0-1


[Site "https://www.chess.com"]

[Event "Titled Tuesday Blitz June 28 Early 2022"]
[White "Dardha, Daniel"]
[Black "Sukandar, Irine Kharisma"]
[WhiteFideId "240990"]
[BlackFideId "7101937"]
[WhiteElo "2482"]
[BlackElo "2293"]
[Result "1-0"]
[Round "01"]
[TimeControl "180+1"]
[Date "2022.06.28"]
[WhiteClock "0:01:46"]
[BlackClock "0:00:04"]

1. Nf3 {[%clk 0:03:00]}  Nf6 {[%clk 0:02:57]} 2. c4 {[%clk 0:02:59]}  c5 {[%clk 0:02:55]} 3. Nc3 {[%clk 0:02:58]}  d5 {[%clk 0:02:55]} 4. cxd5 {[%clk 0:02:57]}  Nxd5 {[%clk 0:02:55]} 5. e4 {[%clk 0:02:57]}  Nc7 {[%clk 0:02:55]} 6. d4 {[%clk 0:02:53]}  cxd4 {[%clk 0:02:50]} 7. Nxd4 {[%clk 0:02:54]}  e5 {[%clk 0:02:50]} 8. Ndb5 {[%clk 0:02:47]}  Qxd1+ {[%clk 0:02:49]} 9. Kxd1 {[%clk 0:02:46]}  Nxb5 {[%clk 0:02:45]} 10. Bxb5+ {[%clk 0:02:46]}  Bd7 {[%clk 0:02:45]} 11. Bxd7+ {[%clk 0:02:45]}  Nxd7 {[%clk 0:02:45]} 12. Ke2 {[%clk 0:02:45]}  Bc5 {[%clk 0:02:31]} 13. Rd1 {[%clk 0:02:43]}  O-O-O {[%clk 0:02:23]} 14. Bg5 {[%clk 0:02:39]}  f6 {[%clk 0:02:21]} 15. Be3 {[%clk 0:02:38]}  Bxe3 {[%clk 0:02:19]} 16. Kxe3 {[%clk 0:02:39]}  Nb6 {[%clk 0:02:13]} 17. b3 {[%clk 0:02:38]}  a6 {[%clk 0:02:10]} 18. a4 {[%clk 0:02:37]}  Rxd1 {[%clk 0:02:06]} 19. Rxd1 {[%clk 0:02:38]}  Rd8 {[%clk 0:02:07]} 20. Rc1 {[%clk 0:02:38]}  Kb8 {[%clk 0:02:01]} 21. a5 {[%clk 0:02:38]}  Nc8 {[%clk 0:01:47]} 22. Nd5 {[%clk 0:02:38]}  Na7 {[%clk 0:01:43]} 23. g3 {[%clk 0:02:27]}  Nc6 {[%clk 0:01:40]} 24. b4 {[%clk 0:02:25]}  f5 {[%clk 0:01:19]} 25. Rc5 {[%clk 0:02:23]}  g6 {[%clk 0:01:10]} 26. exf5 {[%clk 0:02:17]}  gxf5 {[%clk 0:01:10]} 27. f4 {[%clk 0:02:17]}  Re8 {[%clk 0:00:44]} 28. Nf6 {[%clk 0:02:07]}  exf4+ {[%clk 0:00:43]} 29. Kxf4 {[%clk 0:02:08]}  Re2 {[%clk 0:00:43]} 30. h4 {[%clk 0:02:01]}  Rf2+ {[%clk 0:00:21]} 31. Kg5 {[%clk 0:01:54]}  Rg2 {[%clk 0:00:19]} 32. Rc3 {[%clk 0:01:51]}  Nxb4 {[%clk 0:00:12]} 33. Nxh7 {[%clk 0:01:51]}  Nd5 {[%clk 0:00:10]} 34. Rd3 {[%clk 0:01:50]}  Ne7 {[%clk 0:00:05]} 35. Nf6 {[%clk 0:01:47]}  Kc7 {[%clk 0:00:03]} 36. Rd7+ {[%clk 0:01:47]}  Kc6 {[%clk 0:00:03]} 37. Rxe7 {[%clk 0:01:48]}  Rxg3+ {[%clk 0:00:04]} 38. Kxf5 {[%clk 0:01:48]}  Rh3 {[%clk 0:00:04]} 39. h5 {[%clk 0:01:46]} 1-0


[Site "https://www.chess.com"]

[Event "Titled Tuesday Blitz June 28 Early 2022"]
[White "Di Nicolantonio, Lucas"]
[Black "Yoo, Christopher Woojin"]
[WhiteFideId "680460"]
[BlackFideId "30909694"]
[WhiteElo "2381"]
[BlackElo "2105"]
[Result "1-0"]
[Round "01"]
[TimeControl "180+1"]
[Date "2022.06.28"]
[WhiteClock "0:00:05"]
[BlackClock "0:00:02"]

1. e4 {[%clk 0:02:58]}  c6 {[%clk 0:02:58]} 2. c4 {[%clk 0:02:57]}  d5 {[%clk 0:02:53]} 3. cxd5 {[%clk 0:02:58]}  cxd5 {[%clk 0:02:53]} 4. exd5 {[%clk 0:02:58]}  Nf6 {[%clk 0:02:52]} 5. Nc3 {[%clk 0:02:59]}  g6 {[%clk 0:02:44]} 6. Bc4 {[%clk 0:02:57]}  Bg7 {[%clk 0:02:44]} 7. Nge2 {[%clk 0:02:56]}  Nbd7 {[%clk 0:02:38]} 8. d3 {[%clk 0:02:55]}  O-O {[%clk 0:02:35]} 9. O-O {[%clk 0:02:54]}  Nb6 {[%clk 0:02:28]} 10. Qb3 {[%clk 0:02:48]}  Re8 {[%clk 0:01:37]} 11. a4 {[%clk 0:02:26]}  Nxc4 {[%clk 0:01:25]} 12. dxc4 {[%clk 0:02:25]}  e6 {[%clk 0:01:25]} 13. Nf4 {[%clk 0:02:08]}  e5 {[%clk 0:01:24]} 14. Nfe2 {[%clk 0:02:05]}  Bf5 {[%clk 0:01:09]} 15. Rd1 {[%clk 0:01:50]}  Rc8 {[%clk 0:00:53]} 16. Ng3 {[%clk 0:01:44]}  Bd7 {[%clk 0:00:36]} 17. Be3 {[%clk 0:01:37]}  b6 {[%clk 0:00:32]} 18. a5 {[%clk 0:01:34]}  Ng4 {[%clk 0:00:32]} 19. Nce4 {[%clk 0:01:17]}  Nxe3 {[%clk 0:00:28]} 20. Qxe3 {[%clk 0:01:16]}  Bf8 {[%clk 0:00:26]} 21. axb6 {[%clk 0:01:15]}  axb6 {[%clk 0:00:27]} 22. Ra7 {[%clk 0:01:07]}  Bg4 {[%clk 0:00:22]} 23. Rc1 {[%clk 0:01:03]}  Bg7 {[%clk 0:00:08]} 24. h3 {[%clk 0:01:03]}  Bf5 {[%clk 0:00:05]} 25. d6 {[%clk 0:00:39]}  Rf8 {[%clk 0:00:03]} 26. Re7 {[%clk 0:00:31]}  Be6 {[%clk 0:00:03]} 27. b3 {[%clk 0:00:24]}  Rc6 {[%clk 0:00:03]} 28. Rd1 {[%clk 0:00:20]}  Rxd6 {[%clk 0:00:02]} 29. Rxd6 {[%clk 0:00:21]}  Qxe7 {[%clk 0:00:02]} 30. Qxb6 {[%clk 0:00:21]}  f5 {[%clk 0:00:02]} 31. Rxe6 {[%clk 0:00:21]}  Qa3 {[%clk 0:00:02]} 32. Nf6+ {[%clk 0:00:19]}  Kh8 {[%clk 0:00:02]} 33. Nd5 {[%clk 0:00:15]}  Qc1+ {[%clk 0:00:02]} 34. Kh2 {[%clk 0:00:15]}  f4 {[%clk 0:00:02]} 35. Ne4 {[%clk 0:00:15]}  f3 {[%clk 0:00:03]} 36. gxf3 {[%clk 0:00:06]}  Qf1 {[%clk 0:00:02]} 37. Qc6 {[%clk 0:00:05]}  Bh6 {[%clk 0:00:02]} 38. Re8 {[%clk 0:00:05]} 1-0


[Site "https://www.chess.com"]

[Event "Titled Tuesday Blitz June 28 Early 2022"]
[White "Domingo Nunez, Ruben"]
[Black "Gundam, Rohit"]
[WhiteFideId "22245570"]
[BlackFideId "75002809"]
[WhiteElo "2376"]
[BlackElo "2350"]
[Result "1-0"]
[Round "01"]
[TimeControl "180+1"]
[Date "2022.06.28"]
[WhiteClock "0:01:51"]
[BlackClock "0:00:06"]

1. c4 {[%clk 0:02:54]}  Nf6 {[%clk 0:02:58]} 2. Nc3 {[%clk 0:02:54]}  e6 {[%clk 0:02:54]} 3. Nf3 {[%clk 0:02:49]}  d5 {[%clk 0:02:40]} 4. e3 {[%clk 0:02:49]}  Be7 {[%clk 0:02:38]} 5. b3 {[%clk 0:02:48]}  O-O {[%clk 0:02:39]} 6. Bb2 {[%clk 0:02:48]}  Nbd7 {[%clk 0:02:39]} 7. Be2 {[%clk 0:02:48]}  b6 {[%clk 0:02:37]} 8. O-O {[%clk 0:02:47]}  Bb7 {[%clk 0:02:37]} 9. Rc1 {[%clk 0:02:47]}  c5 {[%clk 0:02:37]} 10. Qc2 {[%clk 0:02:43]}  Rc8 {[%clk 0:02:30]} 11. Rfd1 {[%clk 0:02:43]}  Qc7 {[%clk 0:02:26]} 12. Qb1 {[%clk 0:02:40]}  Qb8 {[%clk 0:02:25]} 13. Qa1 {[%clk 0:02:40]}  Rfd8 {[%clk 0:02:20]} 14. cxd5 {[%clk 0:02:40]}  exd5 {[%clk 0:02:18]} 15. d4 {[%clk 0:02:40]}  Bf8 {[%clk 0:02:05]} 16. h3 {[%clk 0:02:33]}  h6 {[%clk 0:01:59]} 17. Ne5 {[%clk 0:02:12]}  Nxe5 {[%clk 0:01:45]} 18. dxe5 {[%clk 0:02:12]}  Ne4 {[%clk 0:01:45]} 19. Nxe4 {[%clk 0:02:07]}  dxe4 {[%clk 0:01:46]} 20. Bg4 {[%clk 0:02:03]}  Rxd1+ {[%clk 0:01:40]} 21. Rxd1 {[%clk 0:02:03]}  Rd8 {[%clk 0:01:40]} 22. e6 {[%clk 0:02:04]}  Rxd1+ {[%clk 0:00:51]} 23. Qxd1 {[%clk 0:02:05]}  Qe8 {[%clk 0:00:49]} 24. exf7+ {[%clk 0:02:04]}  Qxf7 {[%clk 0:00:43]} 25. Qd8 {[%clk 0:02:03]}  Qd5 {[%clk 0:00:20]} 26. Qe8 {[%clk 0:01:59]}  Qd6 {[%clk 0:00:13]} 27. Be6+ {[%clk 0:01:58]}  Kh8 {[%clk 0:00:09]} 28. Qf7 {[%clk 0:01:58]}  Qe7 {[%clk 0:00:08]} 29. Bxg7+ {[%clk 0:01:58]}  Kh7 {[%clk 0:00:06]} 30. Bf5# {[%clk 0:01:51]} 1-0


[Site "https://www.chess.com"]